[Event "Early-Titled-Tuesday-Blitz-May-07-2024"]
[Site "Chess.com"]
[Date "2024.05.07"]
[Round "7"]
[White "Sjakkerntobi"]
[Black "ValentinDragnev"]
[Result "0-1"]
[WhiteElo "2544"]
[BlackElo "2722"]
[TimeControl "180+1"]
[EndTime "9:24:02 PDT"]
[Termination "ValentinDragnev won by resignation"]

1. e4 {[%clk 0:03:00.9]} 1... e5 {[%clk 0:02:57.9]} 2. Nf3 {[%clk 0:02:59.4]}
2... Nc6 {[%clk 0:02:57.7]} 3. Bc4 {[%clk 0:03:00]} 3... Nf6 {[%clk 0:02:57.4]}
4. d3 {[%clk 0:03:00.4]} 4... h6 {[%clk 0:02:55]} 5. O-O {[%clk 0:02:59.3]} 5...
d6 {[%clk 0:02:54.9]} 6. Re1 {[%clk 0:02:55.8]} 6... g5 {[%clk 0:02:53.9]} 7.
Nc3 {[%clk 0:02:42.4]} 7... Na5 {[%clk 0:02:49.9]} 8. Bb3 {[%clk 0:02:39.4]}
8... Bg4 {[%clk 0:02:44.2]} 9. d4 {[%clk 0:01:49.4]} 9... Nxb3 {[%clk
0:02:35.3]} 10. axb3 {[%clk 0:01:48.3]} 10... Nd7 {[%clk 0:02:15.7]} 11. h3
{[%clk 0:01:10.3]} 11... Bh5 {[%clk 0:02:15.5]} 12. g4 {[%clk 0:01:05.3]} 12...
Bg6 {[%clk 0:02:15.6]} 13. dxe5 {[%clk 0:01:05.9]} 13... dxe5 {[%clk 0:02:09.6]}
14. Nd5 {[%clk 0:00:42.8]} 14... Bc5 {[%clk 0:01:49.1]} 15. b4 {[%clk
0:00:38.7]} 15... Bb6 {[%clk 0:01:46.9]} 16. c4 {[%clk 0:00:33.8]} 16... c6
{[%clk 0:01:44.2]} 17. Nxb6 {[%clk 0:00:20.2]} 17... Qxb6 {[%clk 0:01:16.6]} 18.
Qd6 {[%clk 0:00:19.8]} 18... Qd8 {[%clk 0:00:42.3]} 19. Nxe5 {[%clk 0:00:19.4]}
19... Qe7 {[%clk 0:00:42.7]} 20. Qxd7+ {[%clk 0:00:12.3]} 20... Qxd7 {[%clk
0:00:42.5]} 21. Nxd7 {[%clk 0:00:13.2]} 21... Kxd7 {[%clk 0:00:43.2]} 22. e5
{[%clk 0:00:11.8]} 22... Ke6 {[%clk 0:00:42.8]} 23. Kg2 {[%clk 0:00:11.4]} 23...
Rhd8 {[%clk 0:00:42.5]} 24. Be3 {[%clk 0:00:11.3]} 24... a6 {[%clk 0:00:40.9]}
25. Bc5 {[%clk 0:00:11.5]} 25... Rd2 {[%clk 0:00:40.8]} 26. Rad1 {[%clk
0:00:09.6]} 26... Rad8 {[%clk 0:00:41.3]} 27. Bd6 {[%clk 0:00:09.3]} 27... Rxb2
{[%clk 0:00:40.3]} 28. Kg3 {[%clk 0:00:08.2]} 28... Rb3+ {[%clk 0:00:34.9]} 29.
Re3 {[%clk 0:00:08]} 29... Rxb4 {[%clk 0:00:30.8]} 30. Rc1 {[%clk 0:00:02.1]}
30... Rb2 {[%clk 0:00:27.5]} 31. Ree1 {[%clk 0:00:01.1]} 31... a5 {[%clk
0:00:20.6]} 32. Ra1 {[%clk 0:00:01]} 32... Ra8 {[%clk 0:00:20.2]} 33. c5 {[%clk
0:00:01.1]} 33... a4 {[%clk 0:00:20.1]} 34. Re3 {[%clk 0:00:01.5]} 34... Bc2
{[%clk 0:00:15.1]} 35. h4 {[%clk 0:00:01.4]} 35... Bb3 {[%clk 0:00:14.5]} 36.
hxg5 {[%clk 0:00:01.7]} 36... hxg5 {[%clk 0:00:15.4]} 37. f4 {[%clk 0:00:02.4]}
37... gxf4+ {[%clk 0:00:15.3]} 38. Kxf4 {[%clk 0:00:03.3]} 38... a3 {[%clk
0:00:15.7]} 39. Rf3 {[%clk 0:00:03.7]} 39... a2 {[%clk 0:00:15.8]} 40. Rff1
{[%clk 0:00:04]} 40... Bd5 {[%clk 0:00:15.3]} 41. Ke3 {[%clk 0:00:04.2]} 41...
Rb3+ {[%clk 0:00:14]} 42. Kd4 {[%clk 0:00:04.7]} 42... Rg3 {[%clk 0:00:13.4]}
43. Rf6+ {[%clk 0:00:04.3]} 43... Kd7 {[%clk 0:00:14.1]} 44. e6+ {[%clk
0:00:04.2]} 44... Bxe6 {[%clk 0:00:13.6]} 45. Bxg3 {[%clk 0:00:01.8]} 45... Ra4+
{[%clk 0:00:14.1]} 46. Ke5 {[%clk 0:00:01.9]} 46... Rxg4 {[%clk 0:00:14.1]} 47.
Rf3 {[%clk 0:00:01.7]} 47... Rc4 {[%clk 0:00:13.4]} 48. Bf4 {[%clk 0:00:02.3]}
48... Rxc5+ {[%clk 0:00:13.6]} 49. Kd4 {[%clk 0:00:02.7]} 49... Rc2 {[%clk
0:00:13.5]} 50. Ra3 {[%clk 0:00:02.6]} 50... Rf2 {[%clk 0:00:11.9]} 51. Ke3
{[%clk 0:00:03]} 51... Rg2 {[%clk 0:00:11.3]} 52. Rd3+ {[%clk 0:00:03.4]} 52...
Ke7 {[%clk 0:00:10.5]} 53. Kf3 {[%clk 0:00:04]} 53... Rc2 {[%clk 0:00:09.8]} 54.
Be3 {[%clk 0:00:04.4]} 54... Bd5+ {[%clk 0:00:09.5]} 55. Kf4 {[%clk 0:00:04.7]}
55... Ke6 {[%clk 0:00:09.8]} 56. Bd4 {[%clk 0:00:05.1]} 56... Rg2 {[%clk
0:00:09.1]} 57. Re3+ {[%clk 0:00:04.5]} 57... Kd7 {[%clk 0:00:09.5]} 58. Bc5
{[%clk 0:00:03.8]} 58... Rf2+ {[%clk 0:00:09.5]} 59. Kg3 {[%clk 0:00:04.1]}
59... Rc2 {[%clk 0:00:10]} 60. Ba3 {[%clk 0:00:03.3]} 60... c5 {[%clk 0:00:09]}
61. Kf4 {[%clk 0:00:03.6]} 61... b5 {[%clk 0:00:09.1]} 62. Ke5 {[%clk
0:00:04.1]} 62... Kc6 {[%clk 0:00:09.4]} 63. Rd3 {[%clk 0:00:03.8]} 63... Re2+
{[%clk 0:00:06.3]} 64. Kf5 {[%clk 0:00:03.6]} 64... b4 {[%clk 0:00:06.5]} 65.
Rxd5 {[%clk 0:00:01.1]} 65... Kxd5 {[%clk 0:00:05.7]} 66. Bc1 {[%clk 0:00:02]}
66... b3 {[%clk 0:00:05.8]} 67. Kf4 {[%clk 0:00:02.9]} 67... Rc2 {[%clk
0:00:05.6]} 68. Ke3 {[%clk 0:00:03]} 68... c4 {[%clk 0:00:06.1]} 69. Bd2 {[%clk
0:00:02.1]} 69... c3 {[%clk 0:00:05.8]} 70. Bxc3 {[%clk 0:00:02.4]} 70... Rxc3+
{[%clk 0:00:06.7]} 71. Kd2 {[%clk 0:00:03.1]} 71... Kc4 {[%clk 0:00:07]} 72. Rf1
{[%clk 0:00:02.8]} 72... Rc2+ {[%clk 0:00:07.6]} 73. Ke3 {[%clk 0:00:02.2]}
73... b2 {[%clk 0:00:08]} 74. Rf4+ {[%clk 0:00:02.3]} 74... Kc3 {[%clk
0:00:07.9]} 75. Rxf7 {[%clk 0:00:02.3]} 75... b1=Q {[%clk 0:00:08.3]} 76. Rc7+
{[%clk 0:00:02.9]} 76... Kb2 {[%clk 0:00:08.7]} 77. Rb7+ {[%clk 0:00:03.8]}
77... Kc1 {[%clk 0:00:09.1]} 78. Rd7 {[%clk 0:00:03.8]} 78... a1=Q {[%clk
0:00:08.7]} 79. Kf4 {[%clk 0:00:03]} 79... Qb4+ {[%clk 0:00:08.3]} 80. Kf5
{[%clk 0:00:02.5]} 80... Qb5+ {[%clk 0:00:08.3]} 81. Ke6 {[%clk 0:00:03.2]}
81... Qc6+ {[%clk 0:00:08.2]} 82. Kf7 {[%clk 0:00:03.7]} 82... Qa2+ {[%clk
0:00:08.3]} 83. Kf8 {[%clk 0:00:04.6]} 83... Rf2+ {[%clk 0:00:08.5]} 84. Kg7
{[%clk 0:00:04.6]} 84... Qxd7+ {[%clk 0:00:07.6]} 85. Kh8 {[%clk 0:00:05.5]}
85... Qb2+ {[%clk 0:00:07.5]} 0-1

[Event "Early-Titled-Tuesday-Blitz-May-07-2024"]
[Site "Chess.com"]
[Date "2024.05.07"]
[Round "7"]
[White "m_ezat"]
[Black "KogotBobra17"]
[Result "0-1"]
[WhiteElo "2568"]
[BlackElo "2741"]
[TimeControl "180+1"]
[EndTime "9:24:08 PDT"]
[Termination "KogotBobra17 won on time"]

1. d4 {[%clk 0:03:00.9]} 1... Nf6 {[%clk 0:03:00.1]} 2. c4 {[%clk 0:03:00.4]}
2... e5 {[%clk 0:03:00.3]} 3. dxe5 {[%clk 0:02:59.8]} 3... Ng4 {[%clk
0:03:00.8]} 4. Bf4 {[%clk 0:02:59.6]} 4... Bb4+ {[%clk 0:03:01.3]} 5. Nd2 {[%clk
0:02:58.9]} 5... Nc6 {[%clk 0:03:01.8]} 6. Nf3 {[%clk 0:02:58.3]} 6... d6 {[%clk
0:03:02.4]} 7. exd6 {[%clk 0:02:51]} 7... Qf6 {[%clk 0:03:01.8]} 8. e3 {[%clk
0:02:50.9]} 8... Qxb2 {[%clk 0:03:00.9]} 9. Be2 {[%clk 0:02:50.6]} 9... Nge5
{[%clk 0:03:00.9]} 10. O-O {[%clk 0:02:47.1]} 10... Bxd6 {[%clk 0:02:59.2]} 11.
Nxe5 {[%clk 0:02:41.9]} 11... Bxe5 {[%clk 0:03:00.1]} 12. Rb1 {[%clk 0:02:38.1]}
12... Qxa2 {[%clk 0:02:49.5]} 13. Bxe5 {[%clk 0:02:32.4]} 13... Nxe5 {[%clk
0:02:50.4]} 14. Nf3 {[%clk 0:02:31.5]} 14... Nxf3+ {[%clk 0:02:40.1]} 15. Bxf3
{[%clk 0:02:29.8]} 15... O-O {[%clk 0:02:39.6]} 16. Bxb7 {[%clk 0:02:22.2]}
16... Bxb7 {[%clk 0:02:39.7]} 17. Rxb7 {[%clk 0:02:21.7]} 17... Qxc4 {[%clk
0:02:40.3]} 18. Qa1 {[%clk 0:02:18.3]} 18... a5 {[%clk 0:02:09.8]} 19. Rc1
{[%clk 0:02:17.4]} 19... Qd5 {[%clk 0:02:08.6]} 20. Rbxc7 {[%clk 0:02:04]} 20...
a4 {[%clk 0:02:07.5]} 21. Qa3 {[%clk 0:02:04.4]} 21... h6 {[%clk 0:01:59.8]} 22.
h3 {[%clk 0:02:00]} 22... Rfb8 {[%clk 0:01:55]} 23. R7c5 {[%clk 0:01:53]} 23...
Qb3 {[%clk 0:01:45.6]} 24. Qxb3 {[%clk 0:01:19.6]} 24... axb3 {[%clk 0:01:45.5]}
25. Rb1 {[%clk 0:01:18.1]} 25... Ra2 {[%clk 0:01:13.8]} 26. Kf1 {[%clk
0:01:08.4]} 26... Kh7 {[%clk 0:00:53.3]} 27. g4 {[%clk 0:01:04.7]} 27... Rb6
{[%clk 0:00:48.1]} 28. Rc3 {[%clk 0:00:58.1]} 28... Rf6 {[%clk 0:00:46.6]} 29.
f4 {[%clk 0:00:50]} 29... b2 {[%clk 0:00:46.2]} 30. Rc2 {[%clk 0:00:47.6]} 30...
Rb6 {[%clk 0:00:45.9]} 31. Ke2 {[%clk 0:00:46.6]} 31... Rb3 {[%clk 0:00:41.1]}
32. Kd2 {[%clk 0:00:45.3]} 32... Raa3 {[%clk 0:00:37.4]} 33. Rbxb2 {[%clk
0:00:41.2]} 33... Rd3+ {[%clk 0:00:37.3]} 34. Kc1 {[%clk 0:00:34.7]} 34... Rxe3
{[%clk 0:00:35.3]} 35. Rb7 {[%clk 0:00:33.8]} 35... Rxh3 {[%clk 0:00:23]} 36.
Rxf7 {[%clk 0:00:32.8]} 36... Rac3 {[%clk 0:00:21.3]} 37. f5 {[%clk 0:00:20.1]}
37... Rxc2+ {[%clk 0:00:21.2]} 38. Kxc2 {[%clk 0:00:20]} 38... Kg8 {[%clk
0:00:21.7]} 39. Re7 {[%clk 0:00:19.1]} 39... Rf3 {[%clk 0:00:15.8]} 40. Re4
{[%clk 0:00:18.6]} 40... h5 {[%clk 0:00:14.6]} 41. gxh5 {[%clk 0:00:18]} 41...
Rxf5 {[%clk 0:00:14.8]} 42. Rh4 {[%clk 0:00:18.5]} 42... Rd5 {[%clk 0:00:15.3]}
43. Kc3 {[%clk 0:00:18.4]} 43... Kh7 {[%clk 0:00:15.2]} 44. Kc4 {[%clk
0:00:18.3]} 44... Rd6 {[%clk 0:00:13.9]} 45. Kc5 {[%clk 0:00:18.2]} 45... Rd1
{[%clk 0:00:13.9]} 46. Rg4 {[%clk 0:00:17.8]} 46... Rd7 {[%clk 0:00:10.5]} 47.
Rg5 {[%clk 0:00:17.6]} 47... Kh6 {[%clk 0:00:10.1]} 48. Re5 {[%clk 0:00:17.8]}
48... Rd1 {[%clk 0:00:09.6]} 49. Kc4 {[%clk 0:00:17.8]} 49... Rh1 {[%clk
0:00:09.2]} 50. Kd4 {[%clk 0:00:17.5]} 50... Rxh5 {[%clk 0:00:09.6]} 51. Re7
{[%clk 0:00:15.5]} 51... Rf5 {[%clk 0:00:09.4]} 52. Ke4 {[%clk 0:00:15.7]} 52...
Rf1 {[%clk 0:00:09.3]} 53. Rd7 {[%clk 0:00:13.9]} 53... g6 {[%clk 0:00:08.8]}
54. Ke3 {[%clk 0:00:13.9]} 54... Kg5 {[%clk 0:00:08.8]} 55. Rd2 {[%clk
0:00:12.8]} 55... Kf5 {[%clk 0:00:06.1]} 56. Ke2 {[%clk 0:00:10.7]} 56... Rf4
{[%clk 0:00:06]} 57. Ke3 {[%clk 0:00:10.8]} 57... g5 {[%clk 0:00:06.4]} 58. Rd8
{[%clk 0:00:09.7]} 58... Kg4 {[%clk 0:00:06.5]} 59. Rd1 {[%clk 0:00:08.5]} 59...
Rf7 {[%clk 0:00:04.1]} 60. Rg1+ {[%clk 0:00:08.2]} 60... Kh4 {[%clk 0:00:03.9]}
61. Rh1+ {[%clk 0:00:08.3]} 61... Kg4 {[%clk 0:00:04]} 62. Rg1+ {[%clk
0:00:08.8]} 62... Kh5 {[%clk 0:00:04.7]} 63. Rh1+ {[%clk 0:00:09.2]} 63... Kg6
{[%clk 0:00:05.4]} 64. Rg1 {[%clk 0:00:09.7]} 64... Rf4 {[%clk 0:00:05.4]} 65.
Rg2 {[%clk 0:00:08.5]} 65... Kf5 {[%clk 0:00:05.7]} 66. Rh2 {[%clk 0:00:07.3]}
66... Kg4 {[%clk 0:00:04.8]} 67. Rg2+ {[%clk 0:00:07.4]} 67... Kh4 {[%clk
0:00:04.5]} 68. Rh2+ {[%clk 0:00:07.8]} 68... Kg3 {[%clk 0:00:04.8]} 69. Rh1
{[%clk 0:00:07.3]} 69... Rf3+ {[%clk 0:00:04.2]} 70. Ke2 {[%clk 0:00:07.4]}
70... g4 {[%clk 0:00:03.8]} 71. Rg1+ {[%clk 0:00:07]} 71... Kh3 {[%clk
0:00:04.3]} 72. Rb1 {[%clk 0:00:04.5]} 72... Rf8 {[%clk 0:00:03.2]} 73. Rb7
{[%clk 0:00:04.5]} 73... Kg2 {[%clk 0:00:03.4]} 74. Re7 {[%clk 0:00:04]} 74...
g3 {[%clk 0:00:03.6]} 75. Re3 {[%clk 0:00:03.8]} 75... Kh2 {[%clk 0:00:03.9]}
76. Re7 {[%clk 0:00:03.6]} 76... g2 {[%clk 0:00:03.3]} 77. Rh7+ {[%clk
0:00:03.5]} 77... Kg1 {[%clk 0:00:03.9]} 78. Rg7 {[%clk 0:00:03.3]} 78... Rf4
{[%clk 0:00:04]} 79. Ke3 {[%clk 0:00:02.9]} 79... Rf1 {[%clk 0:00:02.3]} 80. Rg6
{[%clk 0:00:02.4]} 80... Rf8 {[%clk 0:00:02.8]} 81. Rg7 {[%clk 0:00:02.4]} 81...
Rh8 {[%clk 0:00:03.3]} 82. Rf7 {[%clk 0:00:01.3]} 82... Kh1 {[%clk 0:00:03.8]}
83. Rf2 {[%clk 0:00:00.5]} 83... g1=Q {[%clk 0:00:04.7]} 0-1

[Event "Early-Titled-Tuesday-Blitz-May-07-2024"]
[Site "Chess.com"]
[Date "2024.05.07"]
[Round "7"]
[White "Felix-Rose"]
[Black "Jojo_898"]
[Result "0-1"]
[WhiteElo "2215"]
[BlackElo "2437"]
[TimeControl "180+1"]
[EndTime "9:24:27 PDT"]
[Termination "Jojo_898 won by resignation"]

1. e4 {[%clk 0:03:00.2]} 1... d6 {[%clk 0:03:00]} 2. d4 {[%clk 0:02:48.9]} 2...
Nf6 {[%clk 0:03:00.1]} 3. Nc3 {[%clk 0:02:48.1]} 3... g6 {[%clk 0:02:59.8]} 4.
Nf3 {[%clk 0:02:47.9]} 4... c6 {[%clk 0:02:59.4]} 5. a4 {[%clk 0:02:46.1]} 5...
Bg7 {[%clk 0:02:58.8]} 6. h3 {[%clk 0:02:46.1]} 6... O-O {[%clk 0:02:58.1]} 7.
Be3 {[%clk 0:02:46.6]} 7... Nbd7 {[%clk 0:02:57.5]} 8. a5 {[%clk 0:02:37.6]}
8... e5 {[%clk 0:02:51.5]} 9. dxe5 {[%clk 0:02:36.8]} 9... dxe5 {[%clk
0:02:50.5]} 10. Bc4 {[%clk 0:02:32.9]} 10... Qe7 {[%clk 0:02:46.2]} 11. O-O
{[%clk 0:02:30.5]} 11... Nc5 {[%clk 0:02:37.3]} 12. Nd2 {[%clk 0:02:29]} 12...
Rd8 {[%clk 0:02:29.7]} 13. Qe2 {[%clk 0:02:24.6]} 13... Ne6 {[%clk 0:02:29.4]}
14. Rfc1 {[%clk 0:02:13.7]} 14... Nd4 {[%clk 0:02:23.9]} 15. Qf1 {[%clk
0:02:13.8]} 15... Nh5 {[%clk 0:02:18.9]} 16. Ne2 {[%clk 0:02:10.6]} 16... Ne6
{[%clk 0:02:10.1]} 17. Nb3 {[%clk 0:01:57.8]} 17... Nhf4 {[%clk 0:02:05.1]} 18.
g3 {[%clk 0:01:45.4]} 18... Nxe2+ {[%clk 0:02:03.9]} 19. Qxe2 {[%clk 0:01:45.6]}
19... Nd4 {[%clk 0:02:04.7]} 20. Qf1 {[%clk 0:01:39.1]} 20... Nf3+ {[%clk
0:01:57.4]} 21. Kh1 {[%clk 0:01:38.2]} 21... Ng5 {[%clk 0:01:56.3]} 22. h4
{[%clk 0:01:36.2]} 22... Nxe4 {[%clk 0:01:54.8]} 23. Qg2 {[%clk 0:01:31.8]}
23... Nd6 {[%clk 0:01:52.6]} 24. Bg5 {[%clk 0:01:29]} 24... Bf6 {[%clk
0:01:48.5]} 25. Bxf6 {[%clk 0:01:28.2]} 25... Qxf6 {[%clk 0:01:48.7]} 26. Be2
{[%clk 0:01:27]} 26... Be6 {[%clk 0:01:45.8]} 27. Nc5 {[%clk 0:01:26.5]} 27...
Bd5 {[%clk 0:01:44.4]} 28. f3 {[%clk 0:01:23.7]} 28... b6 {[%clk 0:01:23.6]} 29.
axb6 {[%clk 0:01:17.4]} 29... axb6 {[%clk 0:01:24.5]} 30. Rxa8 {[%clk
0:01:18.3]} 30... Rxa8 {[%clk 0:01:25.4]} 31. Nd7 {[%clk 0:01:17.9]} 31... Qd8
{[%clk 0:00:58.9]} 32. Nxe5 {[%clk 0:01:16.6]} 32... Qe7 {[%clk 0:00:58.6]} 33.
Nd3 {[%clk 0:01:09.6]} 33... Re8 {[%clk 0:00:57.5]} 34. Nf4 {[%clk 0:01:06.2]}
34... Bc4 {[%clk 0:00:53.2]} 35. Bxc4 {[%clk 0:00:59.7]} 35... Nxc4 {[%clk
0:00:54.1]} 36. Nd3 {[%clk 0:00:57.3]} 36... Qf6 {[%clk 0:00:47.5]} 37. b3
{[%clk 0:00:54.6]} 37... Ne3 {[%clk 0:00:47.6]} 38. Qe2 {[%clk 0:00:53.6]} 38...
Re6 {[%clk 0:00:44.2]} 39. Re1 {[%clk 0:00:49]} 39... Nf5 {[%clk 0:00:39.5]} 40.
Qf2 {[%clk 0:00:48.2]} 40... Rxe1+ {[%clk 0:00:33.1]} 41. Qxe1 {[%clk
0:00:49.1]} 41... Nd4 {[%clk 0:00:27.8]} 42. f4 {[%clk 0:00:31.1]} 42... Nxc2
{[%clk 0:00:26.7]} 43. Qe8+ {[%clk 0:00:30.7]} 43... Kg7 {[%clk 0:00:26.6]} 44.
Ne5 {[%clk 0:00:30.8]} 44... Ne3 {[%clk 0:00:18.3]} 45. Kg1 {[%clk 0:00:17.1]}
45... Nf5 {[%clk 0:00:16.1]} 46. Nd7 {[%clk 0:00:15.5]} 46... Qd4+ {[%clk
0:00:15.2]} 47. Kg2 {[%clk 0:00:14.8]} 47... Qb2+ {[%clk 0:00:13.3]} 48. Kh3
{[%clk 0:00:14.8]} 48... Qa3 {[%clk 0:00:11]} 49. Ne5 {[%clk 0:00:11.9]} 49...
Qf8 {[%clk 0:00:09.3]} 50. Qxc6 {[%clk 0:00:11.3]} 50... Qe7 {[%clk 0:00:07.7]}
51. Qxb6 {[%clk 0:00:11.2]} 51... h5 {[%clk 0:00:08.2]} 52. Qf2 {[%clk
0:00:10.3]} 52... Qb4 {[%clk 0:00:08]} 53. Qc2 {[%clk 0:00:10.4]} 53... Qd4
{[%clk 0:00:07.8]} 54. Nf3 {[%clk 0:00:10.7]} 54... Qe3 {[%clk 0:00:08]} 55.
Qb2+ {[%clk 0:00:10.7]} 55... Kg8 {[%clk 0:00:07.4]} 56. Qg2 {[%clk 0:00:10.3]}
56... Qxb3 {[%clk 0:00:07.4]} 57. Ng5 {[%clk 0:00:10]} 57... Qd3 {[%clk
0:00:06.7]} 58. Ne4 {[%clk 0:00:10.2]} 58... Nd4 {[%clk 0:00:06.2]} 59. Nf6+
{[%clk 0:00:10.4]} 59... Kg7 {[%clk 0:00:06.3]} 60. Ne8+ {[%clk 0:00:10.8]}
60... Kf8 {[%clk 0:00:06.2]} 61. Nf6 {[%clk 0:00:11.2]} 61... Nf5 {[%clk
0:00:06.8]} 62. Nh7+ {[%clk 0:00:11.2]} 62... Kg7 {[%clk 0:00:07]} 63. Ng5
{[%clk 0:00:11.8]} 63... Qd7 {[%clk 0:00:05.5]} 64. Kh2 {[%clk 0:00:12.1]} 64...
Qd3 {[%clk 0:00:04.8]} 65. Qb2+ {[%clk 0:00:12.4]} 65... Kf8 {[%clk 0:00:03]}
66. Qh8+ {[%clk 0:00:12.2]} 66... Ke7 {[%clk 0:00:03.5]} 67. Qe5+ {[%clk
0:00:12.6]} 67... Kd7 {[%clk 0:00:03.8]} 68. Nxf7 {[%clk 0:00:12.8]} 68... Qxg3+
{[%clk 0:00:03.5]} 69. Kh1 {[%clk 0:00:13.6]} 69... Qxh4+ {[%clk 0:00:03.7]} 70.
Kg1 {[%clk 0:00:14.2]} 70... Qg3+ {[%clk 0:00:04.4]} 71. Kf1 {[%clk 0:00:14.9]}
71... Qf3+ {[%clk 0:00:04.8]} 72. Ke1 {[%clk 0:00:15.5]} 72... Qe3+ {[%clk
0:00:05.5]} 73. Qxe3 {[%clk 0:00:15.6]} 73... Nxe3 {[%clk 0:00:06.4]} 74. Ne5+
{[%clk 0:00:16.4]} 74... Ke6 {[%clk 0:00:07]} 75. Nxg6 {[%clk 0:00:17.3]} 75...
Kf5 {[%clk 0:00:07.8]} 76. Kf2 {[%clk 0:00:16.7]} 76... Ng4+ {[%clk 0:00:06.1]}
77. Kg3 {[%clk 0:00:16.2]} 77... Kxg6 {[%clk 0:00:07]} 78. Kh4 {[%clk
0:00:16.9]} 78... Nh6 {[%clk 0:00:07.6]} 79. Kg3 {[%clk 0:00:16.5]} 79... Nf5+
{[%clk 0:00:08.4]} 80. Kh3 {[%clk 0:00:17]} 80... Kf6 {[%clk 0:00:08.7]} 81. Kg2
{[%clk 0:00:17.3]} 81... Ke6 {[%clk 0:00:09.4]} 82. Kf3 {[%clk 0:00:18.2]} 82...
Kd5 {[%clk 0:00:10.1]} 83. Kg2 {[%clk 0:00:17.9]} 83... Kd4 {[%clk 0:00:10.8]}
84. Kh3 {[%clk 0:00:18.8]} 84... Ke4 {[%clk 0:00:11.4]} 85. Kh2 {[%clk
0:00:19.5]} 85... Kxf4 {[%clk 0:00:11.9]} 86. Kh3 {[%clk 0:00:20.4]} 86... Kg5
{[%clk 0:00:11.7]} 87. Kh2 {[%clk 0:00:20.8]} 87... Kg4 {[%clk 0:00:12.4]} 88.
Kh1 {[%clk 0:00:21.2]} 88... Kg3 {[%clk 0:00:12.8]} 89. Kg1 {[%clk 0:00:21.6]}
89... Nh6 {[%clk 0:00:13.1]} 90. Kh1 {[%clk 0:00:22.5]} 90... Ng4 {[%clk
0:00:13.9]} 91. Kg1 {[%clk 0:00:23.4]} 91... h4 {[%clk 0:00:14.8]} 92. Kh1
{[%clk 0:00:24.1]} 92... h3 {[%clk 0:00:15.6]} 93. Kg1 {[%clk 0:00:24.9]} 93...
h2+ {[%clk 0:00:16.3]} 94. Kf1 {[%clk 0:00:24]} 94... h1=Q+ {[%clk 0:00:15.8]}
0-1